[Event "Guimaraes Open 2019"]
[Site "Guimaraes"]
[Date "2019.08.29"]
[Round "2.16"]
[White "Lara Lopez, Sergio"]
[Black "Morato Tent, Francisco"]
[Result "1-0"]
[ECO "C54"]
[WhiteElo "2226"]
[BlackElo "1990"]
[Annotator "NA"]
[PlyCount "77"]
[EventDate "2019.08.28"]
[EventType "swiss"]
[EventCountry "POR"]
[SourceTitle "playchess.com"]
[Source "ChessBase"]
[SourceQuality "1"]
[TimeControl "5400+30"]

1. e4 {[%emt 0:02:09]} e5 {[%emt 0:00:00]} 2. Nf3 {[%emt 0:00:14]} Nc6 {[%emt 0:00:10]} 3. Bc4 {[%emt 0:00:07]} Bc5 {[%emt 0:01:00]} 4. c3 {[%emt 0:00:06]} Nf6 {[%emt 0:00:28]} 5. d3 {[%emt 0:00:06]} a6 {[%emt 0:00:30]} 6. Bb3 {[%emt 0:05:35]} d6 {[%emt 0:02:42]} 7. h3 {[%emt 0:00:22]} h6 {[%emt 0:01:09]} 8. Nbd2 {[%emt 0:00:09]} b5 {[%emt 0:05:40]} 9. Nf1 {[%emt 0:00:22]} d5 {[%emt 0:10:19]} 10. Qe2 {[%emt 0:02:25]} d4 {[%emt 0:07:21]} 11. g4 {[%emt 0:07:23]} Qe7 {[%emt 0:07:05]} 12. Ng3 {[%emt 0:01:59]} g6 {[%emt 0:03:48]} 13. Bd2 {[%emt 0:12:00]} Be6 {[%emt 0:05:19]} 14. Rc1 {[%emt 0:07:31]} Rd8 {[%emt 0:05:30]} 15. Bxe6 {[%emt 0:01:46]} Qxe6 {[%emt 0:01:10]} 16. cxd4 {[%emt 0:01:34]} Bxd4 {[%emt 0:01:24]} 17. b3 {[%emt 0:01:50]} Qd6 {[%emt 0:01:32]} 18. Be3 {[%emt 0:08:52]} Rd7 {[%emt 0:07:17]} 19. O-O {[%emt 0:05:09]} h5 {[%emt 0:04:32]} 20. Nxd4 {[%emt 0:06:18]} exd4 {[%emt 0:06:44]} 21. Bg5 {[%emt 0:07:24]} Nh7 {[%emt 0:03:22]} 22. Bd2 {[%emt 0:02:55]} hxg4 {[%emt 0:01:03]} 23. hxg4 {[%emt 0:00:09]} f6 {[%emt 0:09:56]} 24. Rc2 {[%emt 0:02:17]} Ng5 {[%emt 0:04:07]} 25. f4 {[%emt 0:16:04]} Rdh7 {[%emt 0:01:44]} 26. a4 {[%emt 0:02:37]} Nh3+ {[%emt 0:03:34]} 27. Kg2 {[%emt 0:00:06]} Nd8 {[%emt 0:00:40]} 28. e5 {[%emt 0:01:52]} Qd5+ {[%emt 0:01:26]} 29. Qe4 {[%emt 0:00:08]} Qxb3 {[%emt 0:00:38]} 30. exf6+ {[%emt 0:00:23]} Kd7 {[%emt 0:01:54]} 31. Rfc1 {[%emt 0:00:34]} Ne6 {[%emt 0:02:16]} 32. f5 {[%emt 0:02:23]} gxf5 {[%emt 0:00:38]} 33. gxf5 {[%emt 0:00:05]} Nhf4+ {[%emt 0:00:20]} 34. Bxf4 {[%emt 0:01:25]} Nxf4+ {[%emt 0:00:02]} 35. Kf3 {[%emt 0:00:58]} Nd5 {[%emt 0:00:38]} 36. Rc5 {[%emt 0:00:14]} c6 {[%emt 0:01:20]} 37. Qe6+ {[%emt 0:01:08]} Kd8 {[%emt 0:00:00]} 38. Qd6+ Rd7 39. Qb8# {Rdh7 Qd6+ Kc8 Rxc6+ Kb7 Ke4} 1-0

[Event "Guimaraes Open 2019"]
[Site "Guimaraes"]
[Date "2019.08.29"]
[Round "2.17"]
[White "Santos, Jose Guilherme B Lim"]
[Black "Costa, Paulo"]
[Result "0-1"]
[ECO "B40"]
[WhiteElo "2213"]
[BlackElo "2186"]
[Annotator "NA"]
[PlyCount "120"]
[EventDate "2019.08.28"]
[EventType "swiss"]
[EventCountry "POR"]
[SourceTitle "playchess.com"]
[Source "ChessBase"]
[SourceQuality "1"]
[TimeControl "5400+30"]

1. e4 {[%emt 0:00:00]} c5 {[%emt 0:00:00]} 2. Nf3 {[%emt 0:00:00]} e6 {[%emt 0:00:49]} 3. g3 {[%emt 0:00:00]} Nf6 {[%emt 0:02:02]} 4. Qe2 {[%emt 0:00:00]} d5 {[%emt 0:01:11]} 5. d3 {[%emt 0:00:43]} Be7 {[%emt 0:01:06]} 6. Bg2 {[%emt 0:02:14]} O-O {[%emt 0:01:24]} 7. O-O {[%emt 0:00:31]} Nc6 {[%emt 0:02:34]} 8. e5 {[%emt 0:00:39]} Nd7 {[%emt 0:04:41]} 9. c4 {[%emt 0:00:10]} Nb6 {[%emt 0:03:10]} 10. b3 {[%emt 0:01:02]} a5 11. a4 {[%emt 0:04:09]} Bd7 {[%emt 0:08:32]} 12. Na3 {[%emt 0:10:48]} Nb4 {[%emt 0:01:36]} 13. Nc2 {[%emt 0:04:57]} Bc6 {[%emt 0:04:39]} 14. Nxb4 {[%emt 0:01:05]} axb4 {[%emt 0:03:10]} 15. Bf4 {[%emt 0:06:01]} Qc7 {[%emt 0:07:22]} 16. h4 {[%emt 0:07:36]} Rfd8 {[%emt 0:03:16]} 17. Bh3 {[%emt 0:06:57]} h6 {[%emt 0:05:47]} 18. g4 {[%emt 0:11:18]} dxc4 {[%emt 0:02:59]} 19. dxc4 {[%emt 0:00:07]} Bxf3 {[%emt 0:07:59]} 20. Qxf3 {[%emt 0:00:05]} Bxh4 {[%emt 0:00:09]} 21. Bg2 {[%emt 0:00:04]} Rd7 {[%emt 0:04:16]} 22. Qe3 {[%emt 0:12:21]} Rad8 {[%emt 0:04:13]} 23. Be4 {[%emt 0:00:12]} Rd4 {[%emt 0:02:33]} 24. a5 {[%emt 0:15:08]} Nc8 {[%emt 0:02:38]} 25. Qf3 {[%emt 0:06:58]} Ne7 {[%emt 0:04:32]} 26. Rfe1 {[%emt 0:05:34]} Ng6 {[%emt 0:02:21]} 27. Bh2 {[%emt 0:02:23]} Rd2 {[%emt 0:08:25]} 28. Bg3 {[%emt 0:00:39]} Bxg3 {[%emt 0:01:46]} 29. Qxg3 {[%emt 0:00:03]} Ra8 {[%emt 0:02:54]} 30. Bxg6 {[%emt 0:02:08]} fxg6 {[%emt 0:00:02]} 31. Red1 {[%emt 0:00:12]} Rxa5 {[%emt 0:05:00]} 32. Rxd2 {[%emt 0:00:04]} Rxa1+ {[%emt 0:00:06]} 33. Kh2 {[%emt 0:00:07]} Qc6 {[%emt 0:01:17]} 34. Qg2 {[%emt 0:00:03]} Qxg2+ {[%emt 0:01:24]} 35. Kxg2 {[%emt 0:00:04]} Re1 {[%emt 0:00:09]} 36. f4 {[%emt 0:00:05]} Re3 {[%emt 0:00:43]} 37. Rd8+ {[%emt 0:00:03]} Kf7 {[%emt 0:00:23]} 38. Rd7+ {[%emt 0:00:04]} Kf8 {[%emt 0:00:34]} 39. Rxb7 {[%emt 0:00:03]} Rxb3 {[%emt 0:00:12]} 40. Rb5 {[%emt 0:00:03]} Rc3 {[%emt 0:00:45]} 41. Rxc5 {[%emt 0:00:04]} b3 {[%emt 0:00:15]} 42. Rb5 {[%emt 0:01:39]} Rxc4 {[%emt 0:00:29]} 43. Rxb3 {[%emt 0:00:39]} Rxf4 {[%emt 0:00:09]} 44. Rb8+ {[%emt 0:00:05]} Kf7 {[%emt 0:01:10]} 45. Rb7+ {[%emt 0:00:56]} Kg8 {[%emt 0:01:27]} 46. Re7 {[%emt 0:00:23]} Rxg4+ {[%emt 0:00:11]} 47. Kf3 {[%emt 0:00:07]} Rg5 {[%emt 0:00:19]} 48. Ke4 {[%emt 0:00:04]} Rg4+ {[%emt 0:00:35]} 49. Kf3 {[%emt 0:00:17]} h5 {[%emt 0:00:46]} 50. Rxe6 {[%emt 0:00:04]} Kf7 {[%emt 0:00:07]} 51. Ra6 {[%emt 0:00:02]} Ke7 {[%emt 0:00:49]} 52. Rb6 {[%emt 0:00:58]} Rg1 {[%emt 0:00:58]} 53. Kf4 {[%emt 0:00:47]} Rg4+ {[%emt 0:01:09]} 54. Kf3 {[%emt 0:00:04]} Kf7 {[%emt 0:00:34]} 55. Ra6 {[%emt 0:00:10]} Rb4 {[%emt 0:00:50]} 56. Ra7+ {[%emt 0:00:11]} Ke6 {[%emt 0:00:34]} 57. Rxg7 {[%emt 0:00:04]} Rg4 {[%emt 0:00:06]} 58. Ra7 {[%emt 0:01:33]} Kxe5 {[%emt 0:00:08]} 59. Ra6 {[%emt 0:00:07]} Kf5 {[%emt 0:00:40]} 60. Rb6 {[%emt 0:00:09]} Ra4 {[%emt 0:00:21]} 0-1

[Event "Guimaraes Open 2019"]
[Site "Guimaraes"]
[Date "2019.08.29"]
[Round "2.18"]
[White "Soares, Luis Francisco Almei"]
[Black "Veiga, Jose Francisco R P N"]
[Result "0-1"]
[ECO "A41"]
[WhiteElo "2033"]
[BlackElo "2346"]
[Annotator "NA"]
[PlyCount "64"]
[EventDate "2019.08.28"]
[EventType "swiss"]
[EventCountry "POR"]
[SourceTitle "playchess.com"]
[Source "ChessBase"]
[SourceQuality "1"]
[TimeControl "5400+30"]

1. d4 {[%emt 0:00:00]} d6 {[%emt 0:01:41]} 2. c4 {[%emt 0:00:00]} e5 {[%emt 0:00:20]} 3. d5 {[%emt 0:03:32]} f5 {[%emt 0:00:34]} 4. Nc3 {[%emt 0:00:12]} Nf6 {[%emt 0:00:49]} 5. g3 {[%emt 0:00:23]} g6 {[%emt 0:02:35]} 6. Bg2 {[%emt 0:00:10]} Bg7 {[%emt 0:00:13]} 7. e4 {[%emt 0:03:30]} O-O {[%emt 0:00:54]} 8. exf5 {[%emt 0:00:17]} gxf5 {[%emt 0:01:14]} 9. Bg5 {[%emt 0:03:08]} h6 {[%emt 0:05:24]} 10. Bh4 {[%emt 0:01:34]} Nbd7 {[%emt 0:00:23]} 11. Qc2 {[%emt 0:00:45]} e4 {[%emt 0:01:06]} 12. Nge2 {[%emt 0:00:37]} Ne5 {[%emt 0:01:28]} 13. Nf4 {[%emt 0:00:32]} Qe8 {[%emt 0:21:18]} 14. Nce2 {[%emt 0:01:44]} Nf3+ {[%emt 0:01:09]} 15. Kf1 {[%emt 0:02:53]} Nxh4 {[%emt 0:00:11]} 16. gxh4 {[%emt 0:00:07]} e3 {[%emt 0:13:41]} 17. Nd4 {[%emt 0:11:31]} Nh5 {[%emt 0:24:53]} 18. Nfe6 {[%emt 0:01:52]} Bxd4 {[%emt 0:00:24]} 19. Nxd4 {[%emt 0:00:13]} f4 {[%emt 0:00:43]} 20. Rg1 {[%emt 0:04:27]} Kh8 {[%emt 0:00:10]} 21. Qc3 {[%emt 0:16:16]} Nf6 {[%emt 0:00:46]} 22. fxe3 {[%emt 0:02:04]} fxe3 {[%emt 0:00:19]} 23. Ke2 {[%emt 0:00:27]} Qh5+ {[%emt 0:01:42]} 24. Bf3 {[%emt 0:00:13]} Qxh4 {[%emt 0:00:16]} 25. Raf1 {[%emt 0:01:39]} Bh3 {[%emt 0:00:52]} 26. Bg2 {[%emt 0:01:01]} Qg4+ {[%emt 0:00:39]} 27. Kxe3 {[%emt 0:08:03]} Bxg2 {[%emt 0:00:53]} 28. Rf4 {[%emt 0:00:13]} Nxd5+ {[%emt 0:00:39]} 29. cxd5 {[%emt 0:01:31]} Qxf4+ {[%emt 0:00:02]} 30. Ke2 {[%emt 0:00:38]} Qf2+ {[%emt 0:00:58]} 31. Kd3 {[%emt 0:00:15]} Bf1+ {[%emt 0:00:27]} 32. Ne2+ {[%emt 0:00:47]} Qf6 {Kd4} 0-1

[Event "Guimaraes Open 2019"]
[Site "Guimaraes"]
[Date "2019.08.29"]
[Round "2.19"]
[White "Silva, Pedro Gil Ferreira D"]
[Black "Ruperez Benito, Antonio"]
[Result "0-1"]
[ECO "A06"]
[WhiteElo "1960"]
[BlackElo "2331"]
[Annotator "NA"]
[PlyCount "84"]
[EventDate "2019.08.28"]
[EventType "swiss"]
[EventCountry "POR"]
[SourceTitle "playchess.com"]
[Source "ChessBase"]
[SourceQuality "1"]
[TimeControl "5400+30"]

1. Nf3 {[%emt 0:00:00]} d5 {[%emt 0:14:51]} 2. b3 {[%emt 0:00:00]} c5 {[%emt 0:00:06]} 3. e3 {[%emt 0:00:05]} Nf6 {[%emt 0:00:14]} 4. Bb2 {[%emt 0:00:08]} e6 {[%emt 0:00:22]} 5. c4 {[%emt 0:00:53]} Nc6 {[%emt 0:00:36]} 6. cxd5 {[%emt 0:00:43]} exd5 {[%emt 0:01:53]} 7. Bb5 {[%emt 0:03:34]} Bd7 {[%emt 0:05:33]} 8. O-O {[%emt 0:01:47]} Bd6 {[%emt 0:01:38]} 9. d4 {[%emt 0:05:05]} cxd4 {[%emt 0:00:59]} 10. Nxd4 {[%emt 0:06:33]} O-O {[%emt 0:00:24]} 11. Nd2 {[%emt 0:01:28]} a6 {[%emt 0:01:53]} 12. Bd3 {[%emt 0:01:13]} Re8 {[%emt 0:08:49]} 13. N2f3 {[%emt 0:10:39]} Ne4 {[%emt 0:00:32]} 14. Rc1 {[%emt 0:05:41]} Qe7 {[%emt 0:08:57]} 15. Bb1 {[%emt 0:11:07]} Rad8 {[%emt 0:02:39]} 16. Qe2 {[%emt 0:08:24]} Ne5 {[%emt 0:09:31]} 17. h3 {[%emt 0:06:37]} Bb8 {[%emt 0:07:57]} 18. Rfd1 {[%emt 0:07:42]} Qd6 {[%emt 0:07:19]} 19. Nxe5 {[%emt 0:06:19]} Qxe5 {[%emt 0:04:35]} 20. f4 {[%emt 0:03:24]} Qe7 {[%emt 0:00:07]} 21. Nf3 {[%emt 0:00:37]} Ng3 {[%emt 0:02:07]} 22. Qf2 {[%emt 0:01:03]} Qxe3 {[%emt 0:00:46]} 23. Qxe3 {[%emt 0:00:43]} Rxe3 {[%emt 0:00:03]} 24. Kf2 {[%emt 0:00:20]} Bxf4 {[%emt 0:00:38]} 25. Rxd5 {[%emt 0:04:06]} Re2+ {[%emt 0:00:21]} 26. Kg1 {[%emt 0:00:04]} Bxc1 {[%emt 0:04:23]} 27. Bxc1 {[%emt 0:00:05]} Rc8 {[%emt 0:04:38]} 28. Bf4 {[%emt 0:03:43]} Rb2 {[%emt 0:02:22]} 29. Bxh7+ {[%emt 0:00:27]} Kxh7 {[%emt 0:00:09]} 30. Bxg3 {[%emt 0:00:20]} Bc6 {[%emt 0:01:26]} 31. Rd2 {[%emt 0:01:04]} Rxd2 {[%emt 0:00:13]} 32. Nxd2 {[%emt 0:00:05]} Bd5 {[%emt 0:00:04]} 33. Bf4 {[%emt 0:00:34]} Rc2 {[%emt 0:00:04]} 34. a4 {[%emt 0:00:24]} Rb2 {[%emt 0:00:08]} 35. a5 {[%emt 0:00:11]} Bxb3 {[%emt 0:00:25]} 36. Nxb3 {[%emt 0:00:05]} Rxb3 {[%emt 0:00:03]} 37. Bc7 {[%emt 0:00:06]} Rb2 {[%emt 0:00:13]} 38. Bb6 {[%emt 0:00:11]} Kg6 {[%emt 0:00:14]} 39. Kf1 {[%emt 0:00:20]} f6 {[%emt 0:00:28]} 40. g3 {[%emt 0:00:06]} Kf5 {[%emt 0:00:15]} 41. Ke1 {[%emt 0:00:15]} Ke4 {[%emt 0:00:07]} 42. Kd1 {[%emt 0:00:11]} Rxb6 {[%emt 0:02:52]} 0-1

[Event "Guimaraes Open 2019"]
[Site "Guimaraes"]
[Date "2019.08.29"]
[Round "2.20"]
[White "Sanchez Aller, Fernando"]
[Black "Ruiz De Alegria Garcia, Carlos"]
[Result "1-0"]
[ECO "C41"]
[WhiteElo "2331"]
[BlackElo "1858"]
[Annotator "NA"]
[PlyCount "31"]
[EventDate "2019.08.28"]
[EventType "swiss"]
[EventCountry "POR"]
[SourceTitle "playchess.com"]
[Source "ChessBase"]
[SourceQuality "1"]
[TimeControl "5400+30"]

1. e4 {[%emt 0:00:07]} c6 {[%emt 0:00:56]} 2. d4 {[%emt 0:00:06]} d6 {[%emt 0:00:19]} 3. Nc3 {[%emt 0:00:21]} e5 {[%emt 0:00:34]} 4. Nf3 {[%emt 0:00:55]} Nd7 {[%emt 0:00:40]} 5. Bc4 {[%emt 0:00:13]} Be7 {[%emt 0:00:53]} 6. dxe5 {[%emt 0:03:05]} dxe5 {[%emt 0:00:41]} 7. Ng5 {[%emt 0:01:33]} Bxg5 {[%emt 0:02:38]} 8. Qh5 {[%emt 0:00:08]} g6 {[%emt 0:05:50]} 9. Qxg5 {[%emt 0:01:01]} Qxg5 {[%emt 0:00:10]} 10. Bxg5 {[%emt 0:00:08]} h6 {[%emt 0:01:56]} 11. Bh4 {[%emt 0:02:04]} Ngf6 {[%emt 0:01:39]} 12. a4 a5 {[%emt 0:02:06]} 13. f3 {[%emt 0:01:49]} Nc5 {[%emt 0:03:53]} 14. Bxf6 Nd7 15. Bh4 O-O 16. Bg3 1-0

[Event "Guimaraes Open 2019"]
[Site "Guimaraes"]
[Date "2019.08.29"]
[Round "2.21"]
[White "Marques, Ricardo Taborda Trig"]
[Black "Forgas Moreno, Yaniela"]
[Result "1/2-1/2"]
[ECO "A80"]
[WhiteElo "1958"]
[BlackElo "2276"]
[Annotator "NA"]
[PlyCount "110"]
[EventDate "2019.08.28"]
[EventType "swiss"]
[EventCountry "POR"]
[SourceTitle "playchess.com"]
[Source "ChessBase"]
[SourceQuality "1"]
[TimeControl "5400+30"]

1. d4 {[%emt 0:00:00]} f5 {[%emt 0:00:00]} 2. Bg5 {[%emt 0:00:53]} h6 {[%emt 0:00:00]} 3. Bh4 {[%emt 0:00:18]} g5 {[%emt 0:00:10]} 4. e3 {[%emt 0:00:12]} Nf6 {[%emt 0:00:11]} 5. Bg3 {[%emt 0:00:07]} d6 {[%emt 0:01:41]} 6. c4 {[%emt 0:02:23]} Nc6 {[%emt 0:02:10]} 7. Nc3 e5 {[%emt 0:04:58]} 8. dxe5 {[%emt 0:04:21]} Nxe5 9. Nf3 {[%emt 0:21:08]} Qe7 {[%emt 0:06:41]} 10. Be2 {[%emt 0:00:30]} Nxf3+ {[%emt 0:05:39]} 11. gxf3 {[%emt 0:00:58]} Be6 {[%emt 0:04:09]} 12. Qa4+ {[%emt 0:08:32]} Bd7 {[%emt 0:02:06]} 13. Qb3 {[%emt 0:00:23]} Bc6 {[%emt 0:01:07]} 14. O-O-O {[%emt 0:00:57]} O-O-O {[%emt 0:08:33]} 15. Rhe1 {[%emt 0:09:28]} Nh5 {[%emt 0:05:57]} 16. f4 {[%emt 0:03:31]} g4 {[%emt 0:04:01]} 17. Nd5 {[%emt 0:02:27]} Qf7 {[%emt 0:05:19]} 18. Bh4 {[%emt 0:01:51]} Re8 {[%emt 0:00:09]} 19. h3 {[%emt 0:02:15]} gxh3 {[%emt 0:03:19]} 20. Rh1 {[%emt 0:00:14]} Bxd5 {[%emt 0:00:08]} 21. cxd5 {[%emt 0:02:16]} Nxf4 {[%emt 0:03:58]} 22. Bb5 {[%emt 0:00:41]} c6 {[%emt 0:01:35]} 23. dxc6 {[%emt 0:03:45]} Qxb3 {[%emt 0:00:26]} 24. cxb7+ {[%emt 0:00:10]} Kxb7 {[%emt 0:00:17]} 25. axb3 {[%emt 0:00:02]} Rc8+ {[%emt 0:02:49]} 26. Kb1 {[%emt 0:00:18]} Ng6 {[%emt 0:00:50]} 27. Bf6 {[%emt 0:01:40]} Rh7 {[%emt 0:01:07]} 28. Rxh3 {[%emt 0:01:41]} Ne5 {[%emt 0:00:36]} 29. Rh5 {[%emt 0:02:28]} Rf7 {[%emt 0:03:13]} 30. Bxe5 {[%emt 0:05:24]} dxe5 {[%emt 0:01:14]} 31. Rd5 {[%emt 0:01:06]} Rc5 {[%emt 0:08:57]} 32. Rxc5 {[%emt 0:00:33]} Bxc5 {[%emt 0:00:05]} 33. Rxh6 {[%emt 0:00:17]} f4 {[%emt 0:00:08]} 34. exf4 {[%emt 0:01:07]} Rxf4 {[%emt 0:00:32]} 35. f3 {[%emt 0:00:12]} Rf8 {[%emt 0:00:51]} 36. Bc6+ Kc7 {[%emt 0:00:36]} 37. Be4 {[%emt 0:00:35]} Bd4 {[%emt 0:00:04]} 38. Rc6+ {[%emt 0:00:31]} Kd7 {[%emt 0:00:06]} 39. Rc4 {[%emt 0:00:16]} Ke7 {[%emt 0:00:47]} 40. Ka2 {[%emt 0:02:32]} Rh8 {[%emt 0:00:47]} 41. Rc2 {[%emt 0:00:40]} Kf6 {[%emt 0:00:32]} 42. b4 {[%emt 0:00:18]} Kg5 {[%emt 0:00:17]} 43. Kb3 {[%emt 0:04:27]} Kf4 {[%emt 0:00:45]} 44. Re2 {[%emt 0:05:05]} Rh3 {[%emt 0:01:21]} 45. Kc4 {[%emt 0:00:11]} Rh1 {[%emt 0:00:55]} 46. Bd5 {[%emt 0:01:59]} Rc1+ {[%emt 0:02:23]} 47. Kd3 {[%emt 0:00:42]} Rd1+ {[%emt 0:00:24]} 48. Kc4 {[%emt 0:00:13]} Be3 {[%emt 0:01:57]} 49. Be4 {[%emt 0:00:46]} Rd4+ {[%emt 0:00:50]} 50. Kc3 {[%emt 0:00:46]} Rd1 {[%emt 0:00:40]} 51. b5 {[%emt 0:00:36]} Rc1+ {[%emt 0:00:43]} 52. Kd3 {[%emt 0:00:46]} Bd4 {[%emt 0:00:17]} 53. Rg2 {[%emt 0:00:36]} Rd1+ {[%emt 0:00:26]} 54. Ke2 {[%emt 0:00:18]} Rg1 {[%emt 0:00:05]} 55. Rxg1 {[%emt 0:00:40]} Bxg1 {[%emt 0:00:05]} 1/2-1/2

[Event "Guimaraes Open 2019"]
[Site "Guimaraes"]
[Date "2019.08.29"]
[Round "2.22"]
[White "Garcia Dorado, Alberto"]
[Black "Hernandez Torralba, Sergio"]
[Result "1-0"]
[ECO "E67"]
[WhiteElo "2205"]
[BlackElo "1856"]
[Annotator "NA"]
[PlyCount "75"]
[EventDate "2019.08.28"]
[EventType "swiss"]
[EventCountry "POR"]
[SourceTitle "playchess.com"]
[Source "ChessBase"]
[SourceQuality "1"]
[TimeControl "5400+30"]

1. d4 {[%emt 0:00:00]} Nf6 {[%emt 0:00:00]} 2. c4 {[%emt 0:00:00]} g6 {[%emt 0:00:19]} 3. Nf3 {[%emt 0:00:10]} Bg7 {[%emt 0:00:09]} 4. Nc3 {[%emt 0:00:12]} d6 {[%emt 0:00:12]} 5. g3 {[%emt 0:00:05]} O-O {[%emt 0:00:12]} 6. Bg2 {[%emt 0:00:03]} Nbd7 {[%emt 0:00:19]} 7. O-O {[%emt 0:00:07]} e5 {[%emt 0:00:13]} 8. h3 {[%emt 0:00:05]} c6 {[%emt 0:00:43]} 9. e4 {[%emt 0:00:08]} Re8 {[%emt 0:03:41]} 10. Be3 {[%emt 0:00:53]} exd4 {[%emt 0:04:44]} 11. Nxd4 {[%emt 0:00:22]} Nc5 {[%emt 0:01:16]} 12. Qc2 {[%emt 0:00:08]} a5 {[%emt 0:01:36]} 13. Rad1 {[%emt 0:01:13]} Qe7 {[%emt 0:03:28]} 14. Rfe1 {[%emt 0:00:55]} Be6 {[%emt 0:37:41]} 15. b3 {[%emt 0:01:42]} Rad8 {[%emt 0:02:06]} 16. f4 {[%emt 0:00:49]} Bc8 {[%emt 0:07:18]} 17. Bf2 {[%emt 0:00:20]} Qc7 {[%emt 0:04:53]} 18. Rd2 {[%emt 0:12:02]} Nh5 {[%emt 0:05:36]} 19. Red1 {[%emt 0:02:09]} Bh6 {[%emt 0:06:35]} 20. Ndb5 {[%emt 0:00:59]} cxb5 {[%emt 0:02:16]} 21. Nxb5 {[%emt 0:00:03]} Qe7 {[%emt 0:04:51]} 22. Nxd6 {[%emt 0:00:31]} Rxd6 {[%emt 0:02:10]} 23. Rxd6 {[%emt 0:00:09]} Ne6 {[%emt 0:04:36]} 24. f5 {[%emt 0:03:28]} Nd8 {[%emt 0:03:36]} 25. g4 {[%emt 0:02:51]} Nf4 {[%emt 0:01:13]} 26. f6 {[%emt 0:07:45]} Qf8 {[%emt 0:01:37]} 27. Bc5 {[%emt 0:00:06]} Nde6 {[%emt 0:01:09]} 28. Ba3 {[%emt 0:01:22]} Nxh3+ {[%emt 0:00:44]} 29. Bxh3 {[%emt 0:00:22]} Be3+ {[%emt 0:00:02]} 30. Kh1 {[%emt 0:04:23]} Qh6 {[%emt 0:00:19]} 31. Qg2 {[%emt 0:00:09]} Bf4 {[%emt 0:01:18]} 32. R6d5 {[%emt 0:00:20]} Bc7 {[%emt 0:00:22]} 33. Bd6 {[%emt 0:01:03]} Bb6 {[%emt 0:00:40]} 34. c5 {[%emt 0:00:33]} Bd8 {[%emt 0:00:03]} 35. Be5 {[%emt 0:02:22]} Bxf6 {[%emt 0:00:07]} 36. Bxf6 {[%emt 0:00:18]} b6 {[%emt 0:01:04]} 37. c6 {[%emt 0:00:23]} Qf4 {[%emt 0:00:41]} 38. g5 {[%emt 0:00:56]} 1-0

[Event "Guimaraes Open 2019"]
[Site "Guimaraes"]
[Date "2019.08.29"]
[Round "2.23"]
[White "Garcia Sobrino, David"]
[Black "Ruiz de Alegria Madariaga, Carlo"]
[Result "1/2-1/2"]
[ECO "C45"]
[WhiteElo "2195"]
[BlackElo "1854"]
[Annotator "NA"]
[PlyCount "60"]
[EventDate "2019.08.28"]
[EventType "swiss"]
[EventCountry "POR"]
[SourceTitle "playchess.com"]
[Source "ChessBase"]
[SourceQuality "1"]
[TimeControl "5400+30"]

1. e4 {[%emt 0:01:17]} e5 {[%emt 0:00:00]} 2. Nf3 {[%emt 0:00:09]} Nc6 {[%emt 0:00:00]} 3. d4 {[%emt 0:00:08]} exd4 {[%emt 0:00:00]} 4. Nxd4 {[%emt 0:00:05]} Bc5 {[%emt 0:00:01]} 5. Be3 {[%emt 0:00:07]} Qf6 {[%emt 0:00:34]} 6. c3 {[%emt 0:00:05]} d6 {[%emt 0:02:13]} 7. Bc4 {[%emt 0:04:04]} Nge7 {[%emt 0:00:19]} 8. O-O {[%emt 0:00:57]} O-O {[%emt 0:00:08]} 9. Nxc6 {[%emt 0:08:24]} Nxc6 {[%emt 0:00:11]} 10. Bxc5 {[%emt 0:00:11]} dxc5 {[%emt 0:00:08]} 11. f4 {[%emt 0:04:10]} Na5 {[%emt 0:03:17]} 12. Be2 {[%emt 0:06:01]} c4 {[%emt 0:00:49]} 13. Qd4 {[%emt 0:12:16]} Qa6 {[%emt 0:09:19]} 14. Nd2 {[%emt 0:12:22]} b5 {[%emt 0:05:51]} 15. b4 {[%emt 0:09:54]} Nc6 {[%emt 0:01:38]} 16. Qc5 {[%emt 0:01:19]} Qb6 {[%emt 0:05:01]} 17. a4 {[%emt 0:04:01]} Rd8 {[%emt 0:04:40]} 18. Rfd1 {[%emt 0:05:44]} Qxc5+ 19. bxc5 {[%emt 0:00:04]} b4 {[%emt 0:14:32]} 20. cxb4 {[%emt 0:06:47]} Nxb4 {[%emt 0:00:38]} 21. Nxc4 {[%emt 0:01:23]} Ba6 {[%emt 0:01:08]} 22. Kf2 {[%emt 0:01:02]} Kf8 {[%emt 0:04:25]} 23. Rab1 {[%emt 0:02:56]} Na2 {[%emt 0:02:55]} 24. Rd3 {[%emt 0:06:11]} Rxd3 {[%emt 0:01:52]} 25. Bxd3 {[%emt 0:00:10]} Nc3 {[%emt 0:00:22]} 26. Rb4 {[%emt 0:04:05]} Rd8 {[%emt 0:00:57]} 27. Ke3 {[%emt 0:02:15]} Nd1+ {[%emt 0:00:55]} 28. Ke2 {[%emt 0:00:38]} Nc3+ {[%emt 0:00:21]} 29. Ke3 {[%emt 0:02:03]} Nd1+ {[%emt 0:00:32]} 30. Ke2 {[%emt 0:00:57]} Nc3+ {[%emt 0:00:17]} 1/2-1/2

[Event "Guimaraes Open 2019"]
[Site "Guimaraes"]
[Date "2019.08.29"]
[Round "2.24"]
[White "Reboredo Martinez, Claudio"]
[Black "Lopez Quevedo, Eduardo"]
[Result "0-1"]
[ECO "B32"]
[WhiteElo "1931"]
[BlackElo "2188"]
[Annotator "NA"]
[PlyCount "43"]
[EventDate "2019.08.28"]
[EventType "swiss"]
[EventCountry "POR"]
[SourceTitle "playchess.com"]
[Source "ChessBase"]
[SourceQuality "1"]
[TimeControl "5400+30"]

1. e4 {[%emt 0:00:00]} c5 {[%emt 0:00:00]} 2. Nf3 {[%emt 0:00:00]} Nc6 {[%emt 0:00:00]} 3. d4 {[%emt 0:00:00]} cxd4 {[%emt 0:00:00]} 4. Nxd4 {[%emt 0:00:00]} e5 {[%emt 0:00:10]} 5. Nb5 {[%emt 0:00:00]} d6 {[%emt 0:00:11]} 6. c4 {[%emt 0:01:24]} Be7 {[%emt 0:00:32]} 7. Bd3 {[%emt 0:01:29]} Be6 {[%emt 0:01:33]} 8. N1c3 {[%emt 0:00:23]} a6 {[%emt 0:00:36]} 9. Na3 {[%emt 0:00:04]} Bg5 {[%emt 0:00:59]} 10. Nd5 {[%emt 0:01:28]} Rc8 {[%emt 0:05:14]} 11. O-O {[%emt 0:08:39]} Bxc1 {[%emt 0:01:54]} 12. Rxc1 {[%emt 0:00:52]} Qg5 {[%emt 0:04:21]} 13. Qb3 {[%emt 0:14:07]} Nge7 {[%emt 0:11:43]} 14. Qxb7 {[%emt 0:04:13]} Bh3 {[%emt 0:05:29]} 15. Ne3 {[%emt 0:01:44]} O-O {[%emt 0:02:44]} 16. Qb3 {[%emt 0:06:26]} Rb8 {[%emt 0:03:07]} 17. Qc3 {[%emt 0:00:16]} Nd4 {[%emt 0:11:47]} 18. Rfd1 {[%emt 0:02:27]} f5 {[%emt 0:04:37]} 19. exf5 {[%emt 0:03:04]} Nexf5 {[%emt 0:00:57]} 20. Bf1 {[%emt 0:04:09]} Nh4 {[%emt 0:13:33]} 21. Nac2 {[%emt 0:10:17]} Bxg2 {[%emt 0:07:11]} 22. Nxg2 {[%emt 0:01:44]} 0-1